Workbook

Sheet P&L
A1: AGILENT TECHNOLOGIES, INC.
A2: CONDENSED CONSOLIDATED STATEMENT OF OPERATIONS
A3: (In millions, except per share amounts)
A4: (Unaudited)
A5: PRELIMINARY
B8: Three Months Ended | F8: Years Ended
B9: October 31, | F9: October 31,
B10: 2021 | D10: 2020 | F10: 2021 | H10: 2020
A12: Net revenue | B12: $1,660 | D12: $1,483 | F12: $6,319 | H12: $5,339
A14: Costs and expenses:
A15: Cost of products and services | B15: 760 | D15: 695 | F15: 2,912 | H15: 2,502
A16: Research and development | B16: 116 | D16: 102 | F16: 441 | H16: 495
A17: Selling, general and administrative | B17: 389 | D17: 387 | F17: 1,619 | H17: 1,496
A18: Total costs and expenses | B18: =SUM(B15:B17) -> 1,265 | D18: =SUM(D15:D17) -> 1,184 | F18: =SUM(F15:F17) -> 4,972 | H18: =SUM(H15:H17) -> 4,493
A20: Income from operations | B20: =B12-B18 -> 395 | D20: =D12-D18 -> 299 | F20: =F12-F18 -> 1,347 | H20: =H12-H18 -> 846
A22: Interest income | B22: 1 | D22: 1 | F22: 2 | H22: 8
A23: Interest expense | B23: (21) | D23: (19) | F23: (81) | H23: (78)
A24: Other income (expense), net | B24: 73 | D24: 2 | F24: 92 | H24: 66
A26: Income before taxes | B26: =SUM(B20:B24) -> 448 | D26: =SUM(D20:D24) -> 283 | F26: =SUM(F20:F24) -> 1,360 | H26: =SUM(H20:H24) -> 842
A28: Provision for income taxes | B28: 6 | D28: 61 | F28: 150 | H28: 123
A30: Net income | B30: =B26-B28 -> $442 | D30: =D26-D28 -> $222 | F30: =F26-F28 -> $1,210 | H30: =H26-H28 -> $719
A34: Net income per share:
A35: Basic | B35: =B30/B39 -> $1.46 | D35: =D30/D39 -> $0.72 | F35: =F30/F39 -> $3.98 | H35: =H30/H39 -> $2.33
A36: Diluted | B36: =B30/B40 -> $1.45 | D36: =D30/D40 -> $0.71 | F36: =F30/F40 -> $3.94 | H36: =H30/H40 -> $2.30
A38: Weighted average shares used in computing net income per share:
A39: Basic | B39: 303 | D39: 308 | F39: 304 | H39: 309
A40: Diluted | B40: 305 | D40: 311 | F40: 307 | H40: 312
A48: The preliminary income statement is estimated based on our current information.
A51: Page 1

Sheet Balance Sheet
A1: AGILENT TECHNOLOGIES, INC.
A2: CONDENSED CONSOLIDATED BALANCE SHEET
A3: (In millions, except par value and share amounts)
A4: (Unaudited)
A5: PRELIMINARY
E8: October 31, | G8: October 31,
E9: 2021 | G9: 2020
A10: ASSETS
A12: Current assets:
B13: Cash and cash equivalents | E13: $1,484 | G13: $1,441
B14: Short-term investments | E14: 91 | G14: —
B15: Accounts receivable, net | E15: 1,172 | G15: 1,038
B16: Inventory | E16: 830 | G16: 720
B17: Other current assets | E17: 222 | G17: 216
C18: Total current assets | E18: =SUM(E13:E17) -> 3,799 | G18: =SUM(G13:G17) -> 3,415
A20: Property, plant and equipment, net | E20: 945 | G20: 845
A21: Goodwill and other intangible assets, net | E21: =3975+981 -> 4,956 | G21: =3602+831 -> 4,433
A22: Long-term investments | E22: 185 | G22: 158
A23: Other assets | E23: 820 | G23: 776
C24: Total assets | E24: =SUM(E18:E23) -> $10,705 | G24: =SUM(G18:G23) -> $9,627
A26: LIABILITIES AND EQUITY
A28: Current liabilities:
B29: Accounts payable | E29: $446 | G29: $354
B30: Employee compensation and benefits | E30: 493 | G30: 367
B31: Deferred revenue | E31: 441 | G31: 386
B32: Short-term debt | E32: — | G32: 75
B33: Other accrued liabilities | E33: 328 | G33: 285
C34: Total current liabilities | E34: =SUM(E29:E33) -> 1,708 | G34: =SUM(G29:G33) -> 1,467
A36: Long-term debt | E36: 2,729 | G36: 2,284
A37: Retirement and post-retirement benefits | E37: 220 | G37: 389
A38: Other long-term liabilities | E38: 659 | G38: 614
C39: Total liabilities | E39: =SUM(E34:E38) -> 5,316 | G39: =SUM(G34:G38) -> 4,754
A41: Total Equity:
B42: Stockholders' equity:
B43: Preferred stock; $0.01 par value; 125 million
C44: shares authorized; none issued and outstanding | E44: — | G44: —
B45: Common stock; $0.01 par value, 2 billion
C46: shares authorized; 302 million shares at October 31, 2021
C47: and 306 million shares at October 31, 2020, issued and outstanding | E47: 3 | G47: 3
B48: Additional paid-in-capital | E48: 5,320 | G48: 5,311
B49: Retained earnings | E49: 348 | G49: 81
B50: Accumulated other comprehensive loss | E50: (282) | G50: (522)
C51: Total stockholders' equity | E51: =SUM(E44:E50) -> 5,389 | G51: =SUM(G44:G50) -> 4,873
D52: Total liabilities and stockholders' equity | E52: =E39+E51 -> $10,705 | G52: =G39+G51 -> $9,627
A55: The preliminary balance sheet is estimated based on our current information.
A59: Page 2

Sheet Cash Flow
A1: AGILENT TECHNOLOGIES, INC.
A2: CONDENSED CONSOLIDATED STATEMENT OF CASH FLOWS
A3: (In millions)
A4: (Unaudited)
A5: PRELIMINARY
F8: Years Ended
F9: October 31, | H9: October 31,
F10: 2021 | H10: 2020
A11: Cash flows from operating activities:
B12: Net income | F12: $1,210 | H12: $719
A14: Adjustments to reconcile net income to net cash provided by operating activities:
B15: Depreciation and amortization | F15: 321 | H15: 308
B16: Share-based compensation | F16: 110 | H16: 83
B17: Excess and obsolete inventory related charges | F17: 29 | H17: 28
B18: Loss on extinguishment of debt | F18: 17 | H18: —
B19: Asset impairment charges | F19: 2 | H19: 99
B20: Net gain on equity securities | F20: (98) | H20: (27)
B21: Change in fair value of contingent consideration | F21: (21) | H21: —
B22: Other non-cash expenses, net | F22: 3 | H22: 8
B23: Changes in assets and liabilities:
C24: Accounts receivable, net | F24: (128) | H24: (107)
C25: Inventory | F25: (136) | H25: (68)
C26: Accounts payable | F26: 64 | H26: 2
C27: Employee compensation and benefits | F27: 112 | H27: 29
C28: Other assets and liabilities | F28: — | H28: (153)
A29: Net cash provided by operating activities (a) | F29: =SUM(F12:F28) -> 1,485 | H29: =SUM(H12:H28) -> 921
A31: Cash flows from investing activities:
B32: Investments in property, plant and equipment | F32: (188) | H32: (119)
B33: Proceeds from sale of property, plant and equipment | F33: 1 | H33: 1
B34: Payment to acquire equity securities | F34: (22) | H34: (20)
B35: Proceeds from sale of equity securities | F35: 12 | H35: —
B36: Payment to acquire intangible assets | F36: (1) | H36: —
B37: Payment in exchange for convertible note | F37: (5) | H37: (9)
B38: Acquisition of businesses and intangible assets, net of cash acquired | F38: (546) | H38: —
A39: Net cash used in investing activities | F39: =SUM(F32:F38) -> (749) | H39: =SUM(H32:H38) -> (147)
A41: Cash flows from financing activities:
B42: Issuance of common stock under employee stock plans | F42: 55 | H42: 60
B43: Payment of taxes related to net share settlement of equity awards | F43: (76) | H43: (37)
B44: Issuance of senior notes | F44: 848 | H44: 499
B45: Debt issuance costs | F45: (7) | H45: (4)
B46: Payment of dividends | F46: (236) | H46: (222)
B47: Repayment of senior notes | F47: (417) | H47: —
B48: Proceeds from commercial paper | F48: 1,647 | H48: 420
B49: Repayment of commercial paper | F49: (1,722) | H49: (345)
B50: Proceeds from revolving credit facility | F50: — | H50: 798
B51: Repayment of revolving credit facility | F51: — | H51: (1,413)
B52: Repayment of finance lease | F52: — | H52: (4)
B53: Treasury stock repurchases | F53: (788) | H53: (469)
A54: Net cash used in financing activities | F54: =SUM(F40:F53) -> (696) | H54: =SUM(H42:H53) -> (717)
A56: Effect of exchange rate movements | F56: 3 | H56: 2
A58: Net increase in cash, cash equivalents and restricted cash | F58: =F29+F39+F54+F56 -> 43 | H58: =H29+H39+H54+H56 -> 59
A60: Cash, cash equivalents and restricted cash at beginning of period | F60: 1,447 | H60: 1,388
A62: Cash, cash equivalents and restricted cash at end of period | F62: =SUM(F58:F60) -> $1,490 | H62: =SUM(H58:H60) -> $1,447
A65: Reconciliation of cash, cash equivalents and restricted cash to the condensed consolidated balance sheet:
B67: Cash and cash equivalents | F67: $1,484 | H67: $1,441
B68: Restricted cash, included in other assets | F68: 6 | H68: 6
B69: Total cash, cash equivalents and restricted cash | F69: =SUM(F67:F68) -> $1,490 | H69: =SUM(H67:H68) -> $1,447
A72: (a) Cash payments included in operating activities:
B74: Income tax paid, net | F74: $211 | H74: $361
B75: Interest payments | F75: $76 | H75: $71
A78: The preliminary cash flow is estimated based on our current information.
A81: Page 3

Sheet Net Income & EPS Non-GAAP
A1: AGILENT TECHNOLOGIES, INC.
A2: NON-GAAP NET INCOME AND DILUTED EPS RECONCILIATIONS
A3: (In millions, except per share amounts)
A4: (Unaudited)
A5: PRELIMINARY
E7: Three Months Ended | K7: Years Ended
E8: October 31, | K8: October 31,
E9: 2021 | F9: Diluted EPS | H9: 2020 | I9: Diluted EPS | K9: 2021 | L9: Diluted EPS | N9: 2020 | O9: Diluted EPS
A11: GAAP net income | E11: $442 | F11: $1.45 | H11: $222 | I11: $0.71 | K11: $1,210 | L11: $3.94 | N11: $719 | O11: $2.30
B12: Non-GAAP adjustments:
C13: Asset impairments | E13: — | F13: — | H13: — | I13: — | K13: 2 | L13: 0.01 | N13: 99 | O13: 0.32
C14: Intangible amortization | E14: 51 | F14: 0.17 | H14: 45 | I14: 0.14 | K14: 194 | L14: 0.63 | N14: 184 | O14: 0.59
C15: Transformational initiatives | E15: 5 | F15: 0.02 | H15: 12 | I15: 0.04 | K15: 37 | L15: 0.12 | N15: 53 | O15: 0.17
C16: Acquisition and integration costs | E16: 9 | F16: 0.03 | H16: 8 | I16: 0.03 | K16: 41 | L16: 0.13 | N16: 41 | O16: 0.13
C17: Change in fair value of contingent consideration | E17: (21) | F17: (0.07) | H17: — | I17: — | K17: (21) | L17: (0.07) | N17: — | O17: —
C18: Loss on extinguishment of debt | E18: — | F18: — | H18: — | I18: — | K18: 17 | L18: 0.06 | N18: — | O18: —
C19: Business exit and divestiture costs | E19: 1 | F19: — | H19: 2 | I19: 0.01 | K19: 5 | L19: 0.02 | N19: 2 | O19: 0.01
C20: Pension settlement loss | E20: 1 | F20: — | H20: 4 | I20: 0.01 | K20: 1 | L20: — | N20: 4 | O20: 0.01
C21: Net gain on equity securities | E21: (73) | F21: (0.24) | H21: (2) | I21: (0.01) | K21: (92) | L21: (0.30) | N21: (28) | O21: (0.09)
C22: Other | E22: 2 | F22: 0.01 | H22: 5 | I22: 0.02 | K22: 9 | L22: 0.02 | N22: =-20+2+28 -> 10 | O22: 0.04
C23: Adjustment for taxes (a) | E23: (49) | F23: (0.16) | H23: 9 | I23: 0.03 | K23: (71) | L23: (0.22) | N23: (61) | O23: (0.20)
A24: Non-GAAP net income | E24: =SUM(E11:E23) -> $368 | F24: =SUM(F11:F23) -> $1.21 | H24: =SUM(H11:H23) -> $305 | I24: =SUM(I11:I23) -> $0.98 | K24: =SUM(K11:K23) -> $1,332 | L24: =SUM(L11:L23) -> $4.34 | N24: =SUM(N11:N23) -> $1,023 | O24: =SUM(O11:O23) -> $3.28
A27: (a) The adjustment for taxes excludes tax expense (benefits) that management believes are not directly related to on-going operations and which are either isolated or cannot be expected to occur again with any regularity or predictability. For the three months and year ended October 31, 2021, management used a non-GAAP effective tax rate of 13.00% and 14.25%, respectively. For the three months and year ended October 31, 2020, management used a non-GAAP effective tax rate of 14.65% and 15.25%, respectively.
A29: We provide non-GAAP net income and non-GAAP net income per share amounts in order to provide meaningful supplemental information regarding our operational performance and our prospects for the future. These supplemental measures exclude, among other things, charges related to asset impairments, amortization of intangibles, transformational initiatives, acquisition and integration costs, change in fair value of contingent consideration, loss on extinguishment of debt, business exit and divestiture costs, pension settlement loss and net gain on equity securities.
B30: Asset impairments include assets that have been written down to their fair value.
B31: Transformational initiatives include expenses associated with targeted cost reduction activities such as manufacturing transfers including costs to move manufacturing, small site consolidations, legal entity and other business reorganizations, insourcing or outsourcing of activities. Such costs may include move and relocation costs, one-time termination benefits and other one-time reorganization costs. Included in this category are also expenses associated with company programs to transform our product lifecycle management (PLM) system, human resources and financial systems.
B32: Acquisition and integration costs include all incremental expenses incurred to effect a business combination. Such acquisition costs may include advisory, legal, accounting, valuation, and other professional or consulting fees. Such integration costs may include expenses directly related to integration of business and facility operations, the transfer of assets and intellectual property, information technology systems and infrastructure and other employee-related costs.
B33: Pension settlement loss relates to the relief of the US Retirement Plan pension obligation due to increased lump sum payouts over a specified accounting threshold.
B34: Change in fair value of contingent consideration represents changes in the fair value estimate of acquisition-related contingent consideration.
B35: Loss on extinguishment of debt relates to the net loss recorded on the redemption of $100 million of the $400 million outstanding 3.2% 2022 senior notes due on October 1, 2022, called on December 22, 2020 and settled on January 21, 2021 and the net loss recorded on the redemption of the remaining $300 million called on March 5, 2021 and settled on April 5, 2021.
B36: Business exit and divestiture costs include costs associated with business divestitures.
B37: Pension settlement loss relates to the relief of the US Retirement Plan pension obligation due to increased lump sum payouts over a specified accounting threshold.
B38: NASD site costs include all the costs related to the expansion of our manufacturing of nucleic acid active pharmaceutical ingredients incurred prior to the commencement of commercial manufacturing.
B39: Special compliance costs include costs associated with transforming our processes to implement new regulations such as data privacy regulations, revenue recognition, lease accounting and certain tax reporting requirements.
B40: Acceleration of share-based compensation expense represents stock-based compensation expense that was accelerated upon employees’ involuntary termination from the company.
B41: Net gain on equity securities relates to the realized and unrealized mark-to-market adjustments for our marketable and non-marketable equity securities.
B42: Other includes certain legal costs and settlements, special compliance costs and acceleration of share-based compensation expense in addition to other miscellaneous adjustments.
B43: Tax benefit on intra-entity asset transfer relates to our operations in Singapore along with our application of the new accounting rules for income tax consequences of intra-entity transfer of assets as adopted on November 1, 2018.
A45: Our management uses non-GAAP measures to evaluate the performance of our core businesses, to estimate future core performance and to compensate employees. Since management finds this measure to be useful, we believe that our investors benefit from seeing our results “through the eyes” of management in addition to seeing our GAAP results. This information facilitates our management’s internal comparisons to our historical operating results as well as to the operating results of our competitors.
A47: Our management recognizes that items such as amortization of intangibles can have a material impact on our cash flows and/or our net income. Our GAAP financial statements including our statement of cash flows portray those effects. Although we believe it is useful for investors to see core performance free of special items, investors should understand that the excluded items are actual expenses that may impact the cash available to us for other uses. To gain a complete picture of all effects on the company’s profit and loss from any and all events, management does (and investors should) rely upon the GAAP income statement. The non-GAAP numbers focus instead upon the core business of the company, which is only a subset, albeit a critical one, of the company’s performance.
A49: Readers are reminded that non-GAAP numbers are merely a supplement to, and not a replacement for, GAAP financial measures. They should be read in conjunction with the GAAP financial measures. It should be noted as well that our non-GAAP information may be different from the non-GAAP information provided by other companies.
A51: The preliminary non-GAAP net income and diluted EPS reconciliation is estimated based on our current information.
A54: Page 4

Sheet Segment Results
A1: AGILENT TECHNOLOGIES, INC.
A2: SEGMENT INFORMATION
A3: (In millions, except where noted)
A4: (Unaudited)
A5: PRELIMINARY
A8: Quarter-over-Quarter
A10: Life Sciences and Applied Markets Group
C11: Q4'21 | E11: Q4'20
A12: Revenue | C12: $747 | E12: $671
A13: Gross Margin, % | C13: 59.4% | E13: 59.2%
A14: Income from Operations | C14: $199 | E14: $166
A15: Operating margin, % | C15: 26.6% | E15: 24.8%
A18: Diagnostics and Genomics Group
C19: =C11 -> Q4'21 | E19: =E11 -> Q4'20
A20: Revenue | C20: $341 | E20: $294
A21: Gross Margin, % | C21: 52.5% | E21: 50.9%
A22: Income from Operations | C22: $71 | E22: $60
A23: Operating margin, % | C23: 20.8% | E23: 20.3%
A26: Agilent CrossLab Group
C27: =C11 -> Q4'21 | E27: =E11 -> Q4'20
A28: Revenue | C28: $572 | E28: $518
A29: Gross Margin, % | C29: 53.4% | E29: 51.8%
A30: Income from Operations | C30: $171 | E30: $143
A31: Operating margin, % | C31: 29.9% | E31: 27.7%
A34: Year-over-Year
A36: Life Sciences and Applied Markets Group
C37: FY21 | E37: FY20
A38: Revenue | C38: $2,823 | E38: $2,392
A39: Gross Margin, % | C39: 59.8% | E39: 59.2%
A40: Income from Operations | C40: $722 | E40: $548
A41: Operating margin, % | C41: 25.6% | E41: 22.9%
A44: Diagnostics and Genomics Group
C45: =C37 -> FY21 | E45: =E37 -> FY20
A46: Revenue | C46: $1,296 | E46: $1,047
A47: Gross Margin, % | C47: 52.8% | E47: 51.9%
A48: Income from Operations | C48: $273 | E48: $192
A49: Operating margin, % | C49: 21.0% | E49: 18.3%
A52: Agilent CrossLab Group
C53: =C37 -> FY21 | E53: =E37 -> FY20
A54: Revenue | C54: $2,200 | E54: $1,900
A55: Gross Margin, % | C55: 52.3% | E55: 52.2%
A56: Income from Operations | C56: $618 | E56: $516
A57: Operating margin, % | C57: 28.1% | E57: 27.2%
A61: Income from operations reflect the results of our reportable segments under Agilent's management reporting system which are not necessarily in conformity with GAAP financial measures. Income from operations of our reporting segments exclude, among other things, charges related to asset impairments, amortization of intangibles, transformational initiatives, acquisition and integration costs, change in fair value of contingent consideration and business exit and divestiture costs.
A63: Readers are reminded that non-GAAP numbers are merely a supplement to, and not a replacement for, GAAP financial measures. They should be read in conjunction with the GAAP financial measures. It should be noted as well that our non-GAAP information may be different from the non-GAAP information provided by other companies.
A65: The preliminary segment information is estimated based on our current information.
A68: Page 5

Sheet Core Revenue by Segment (QTD)
A1: AGILENT TECHNOLOGIES, INC.
A2: RECONCILIATIONS OF REVENUE BY SEGMENT
A3: EXCLUDING ACQUISITIONS, DIVESTITURES AND THE IMPACT OF CURRENCY ADJUSTMENTS (CORE)
A4: (in millions)
A5: (Unaudited)
A6: PRELIMINARY
B8: Year-over-Year
B10: GAAP
D11: Year-over-Year
A12: GAAP Revenue by Segment | B12: Q4'21 | C12: Q4'20 | D12: % Change
A14: Life Sciences and Applied Markets Group | B14: $747 | C14: $671 | D14: 11%
A15: Diagnostics and Genomics Group | B15: 341 | C15: 294 | D15: 16%
A16: Agilent CrossLab Group | B16: 572 | C16: 518 | D16: 10%
A17: Agilent | B17: =SUM(B14:B16) -> $1,660 | C17: =SUM(C14:C16) -> $1,483 | D17: 12%
B22: Non-GAAP (excluding Acquisitions & Divestitures) | F22: Year-over-Year at Constant Currency (a)
D23: Year-over-Year | F23: Year-over-Year | G23: Percentage Point Impact from Currency | I23: Current Quarter Currency Impact (b)
A24: Non GAAP Revenue by Segment | B24: =B12 -> Q4'21 | C24: =C12 -> Q4'20 | D24: % Change | F24: % Change
A26: Life Sciences and Applied Markets Group | B26: $747 | C26: $671 | D26: 11% | F26: 11% | G26: — | I26: $4
A27: Diagnostics and Genomics Group | B27: 333 | C27: 294 | D27: 14% | F27: 13% | G27: 1 ppt | I27: 1
A28: Agilent CrossLab Group | B28: 572 | C28: 518 | D28: 10% | F28: 9% | G28: 1 ppt | I28: 6
A29: Agilent (Core) | B29: =SUM(B26:B28) -> $1,652 | C29: =SUM(C26:C28) -> $1,483 | D29: 11% | F29: 11% | G29: — | I29: =SUM(I26:I28) -> $11
A33: We compare the year-over-year change in revenue excluding the effect of recent acquisitions and divestitures and foreign currency rate fluctuations to assess the performance of our underlying business.
A35: (a) The constant currency year-over-year growth percentage is calculated by recalculating all periods in the comparison period at the foreign currency exchange rates used for accounting during the last month of the current quarter and then using those revised values to calculate the year-over-year percentage change.
A37: (b) The dollar impact from the current quarter currency impact is equal to the total year-over-year dollar change less the constant currency year-over-year change.
A39: The preliminary reconciliation of GAAP revenue adjusted for recent acquisitions and divestitures and impact of currency is estimated based on our current information.
A45: Page 6

Sheet Core Revenue by Segment (YTD)
A1: AGILENT TECHNOLOGIES, INC.
A2: RECONCILIATIONS OF REVENUE BY SEGMENT
A3: EXCLUDING ACQUISITIONS, DIVESTITURES AND THE IMPACT OF CURRENCY ADJUSTMENTS (CORE)
A4: (in millions)
A5: (Unaudited)
A6: PRELIMINARY
B8: Year-over-Year
B10: GAAP
D11: Year-over-Year
A12: GAAP Revenue by Segment | B12: FY21 | C12: FY20 | D12: % Change
A14: Life Sciences and Applied Markets Group | B14: $2,823 | C14: $2,392 | D14: 18%
A15: Diagnostics and Genomics Group | B15: 1,296 | C15: 1,047 | D15: 24%
A16: Agilent CrossLab Group | B16: 2,200 | C16: 1,900 | D16: 16%
A17: Agilent | B17: =SUM(B14:B16) -> $6,319 | C17: =SUM(C14:C16) -> $5,339 | D17: 18%
B22: Non-GAAP (excluding Acquisitions & Divestitures) | F22: Year-over-Year at Constant Currency (a)
D23: Year-over-Year | F23: Year-over-Year | G23: Percentage Point Impact from Currency | I23: Current Quarter Currency Impact (b)
A24: Non GAAP Revenue by Segment | B24: =B12 -> FY21 | C24: =C12 -> FY20 | D24: % Change | F24: % Change
A26: Life Sciences and Applied Markets Group | B26: $2,823 | C26: $2,392 | D26: 18% | F26: 16% | G26: 2 ppts | I26: $59
A27: Diagnostics and Genomics Group | B27: 1,282 | C27: 1,047 | D27: 22% | F27: 20% | G27: 2 ppts | I27: 27
A28: Agilent CrossLab Group | B28: 2,200 | C28: 1,900 | D28: 16% | F28: 12% | G28: 4 ppts | I28: 67
A29: Agilent (Core) | B29: =SUM(B26:B28) -> $6,305 | C29: =SUM(C26:C28) -> $5,339 | D29: 18% | F29: 15% | G29: 3 ppts | I29: =SUM(I26:I28) -> $153
A33: We compare the year-over-year change in revenue excluding the effect of recent acquisitions and divestitures and foreign currency rate fluctuations to assess the performance of our underlying business.
A35: (a) The constant currency year-over-year growth percentage is calculated by recalculating all periods in the comparison period at the foreign currency exchange rates used for accounting during the last month of the current quarter and then using those revised values to calculate the year-over-year percentage change.
A37: (b) The dollar impact from the current year currency impact is equal to the total year-over-year dollar change less the constant currency year-over-year change.
A39: The preliminary reconciliation of GAAP revenue adjusted for recent acquisitions and divestitures and impact of currency is estimated based on our current information.
A45: Page 7
